[Event "Titled Tuesday Blitz June 13 Late 2023"]
[White "Pap, Gyula"]
[Black "Fiorito, Joaquin"]
[WhiteFideId "725323"]
[BlackFideId "180173"]
[WhiteElo "2519"]
[BlackElo "2199"]
[Result "1-0"]
[Round "7"]
[TimeControl "180+2"]
[Date "2023.06.13"]
[WhiteClock "0:00:09"]
[BlackClock "0:00:06"]
[Board "33"]

1. d4 {[%clk 0:03:00]}  Nf6 {[%clk 0:02:59]} 2. c4 {[%clk 0:03:01]}  e6 {[%clk 0:03:00]} 3. Nc3 {[%clk 0:03:01]}  Bb4 {[%clk 0:03:00]} 4. Qb3 {[%clk 0:03:02]}  c5 {[%clk 0:02:59]} 5. dxc5 {[%clk 0:03:01]}  Bxc5 {[%clk 0:02:57]} 6. Nf3 {[%clk 0:03:01]}  O-O {[%clk 0:02:57]} 7. Bg5 {[%clk 0:03:01]}  b6 {[%clk 0:02:55]} 8. e3 {[%clk 0:03:00]}  Bb7 {[%clk 0:02:55]} 9. Be2 {[%clk 0:03:01]}  Nc6 {[%clk 0:02:55]} 10. O-O {[%clk 0:02:59]}  a6 {[%clk 0:02:43]} 11. Rad1 {[%clk 0:02:52]}  Qc7 {[%clk 0:02:43]} 12. Bxf6 {[%clk 0:02:46]}  gxf6 {[%clk 0:02:43]} 13. Ne4 {[%clk 0:02:47]}  Be7 {[%clk 0:02:41]} 14. Qc3 {[%clk 0:02:44]}  Ne5 {[%clk 0:02:34]} 15. Ng3 {[%clk 0:02:41]}  Rac8 {[%clk 0:02:19]} 16. Nh5 {[%clk 0:02:32]}  Rfd8 {[%clk 0:02:14]} 17. Qd4 {[%clk 0:02:28]}  Nxf3+ {[%clk 0:02:03]} 18. Bxf3 {[%clk 0:02:27]}  Bxf3 {[%clk 0:02:03]} 19. gxf3 {[%clk 0:02:28]}  Qe5 {[%clk 0:02:03]} 20. Ng3 {[%clk 0:02:15]}  Qxd4 {[%clk 0:02:02]} 21. Rxd4 {[%clk 0:02:16]}  Bc5 {[%clk 0:01:59]} 22. Rg4+ {[%clk 0:02:11]}  Kf8 {[%clk 0:01:59]} 23. Rh4 {[%clk 0:02:10]}  Bd6 {[%clk 0:01:54]} 24. b3 {[%clk 0:02:01]}  Kg7 {[%clk 0:01:53]} 25. Nh5+ {[%clk 0:01:51]}  Kg6 {[%clk 0:01:52]} 26. Kh1 {[%clk 0:01:51]}  Kg5 {[%clk 0:01:37]} 27. Rh3 {[%clk 0:01:50]}  Kf5 {[%clk 0:01:28]} 28. Rd1 {[%clk 0:01:18]}  Bc5 {[%clk 0:01:24]} 29. Ng7+ {[%clk 0:00:05]}  Ke5 {[%clk 0:01:20]} 30. f4+ {[%clk 0:00:05]}  Ke4 {[%clk 0:01:20]} 31. Nh5 {[%clk 0:00:05]}  Kf5 {[%clk 0:01:13]} 32. Ng7+ {[%clk 0:00:02]}  Ke4 {[%clk 0:01:13]} 33. Nh5 {[%clk 0:00:02]}  d5 {[%clk 0:00:57]} 34. Ng3+ {[%clk 0:00:02]}  Kf3 {[%clk 0:00:58]} 35. Kg1 {[%clk 0:00:01]}  dxc4 {[%clk 0:00:54]} 36. Re1 {[%clk 0:00:02]}  Rg8 {[%clk 0:00:51]} 37. Kf1 {[%clk 0:00:02]}  Kg4 {[%clk 0:00:51]} 38. Rxh7 {[%clk 0:00:01]}  Rh8 {[%clk 0:00:48]} 39. Rxh8 {[%clk 0:00:02]}  Rxh8 {[%clk 0:00:47]} 40. Kg2 {[%clk 0:00:02]}  c3 {[%clk 0:00:43]} 41. Rc1 {[%clk 0:00:01]}  Bb4 {[%clk 0:00:44]} 42. a3 {[%clk 0:00:01]}  Bxa3 {[%clk 0:00:41]} 43. Rxc3 {[%clk 0:00:02]}  Bc5 {[%clk 0:00:40]} 44. Rc4 {[%clk 0:00:01]}  f5 {[%clk 0:00:39]} 45. b4 {[%clk 0:00:01]}  Bd6 {[%clk 0:00:38]} 46. Rd4 {[%clk 0:00:02]}  Rd8 {[%clk 0:00:36]} 47. h3+ {[%clk 0:00:01]}  Kh4 {[%clk 0:00:36]} 48. Rc4 {[%clk 0:00:02]}  b5 {[%clk 0:00:34]} 49. Rc6 {[%clk 0:00:02]}  Bxb4 {[%clk 0:00:34]} 50. Rxa6 {[%clk 0:00:03]}  Bc5 {[%clk 0:00:21]} 51. Rc6 {[%clk 0:00:04]}  Bd6 {[%clk 0:00:21]} 52. Rb6 {[%clk 0:00:04]}  b4 {[%clk 0:00:20]} 53. Rb7 {[%clk 0:00:05]}  Rf8 {[%clk 0:00:16]} 54. Rd7 {[%clk 0:00:05]}  Bc5 {[%clk 0:00:17]} 55. Rc7 {[%clk 0:00:05]}  Bd6 {[%clk 0:00:17]} 56. Rd7 {[%clk 0:00:05]}  Bc5 {[%clk 0:00:17]} 57. e4 {[%clk 0:00:02]}  b3 {[%clk 0:00:13]} 58. Rb7 {[%clk 0:00:01]}  fxe4 {[%clk 0:00:13]} 59. Nxe4 {[%clk 0:00:02]}  Bd4 {[%clk 0:00:12]} 60. Rxb3 {[%clk 0:00:02]}  Kh5 {[%clk 0:00:09]} 61. Ng3+ {[%clk 0:00:02]}  Kg6 {[%clk 0:00:10]} 62. Rb4 {[%clk 0:00:02]}  Bc3 {[%clk 0:00:09]} 63. Rc4 {[%clk 0:00:02]}  Ba1 {[%clk 0:00:09]} 64. Rc6 {[%clk 0:00:02]}  Kf6 {[%clk 0:00:09]} 65. f5 {[%clk 0:00:02]}  Be5 {[%clk 0:00:08]} 66. fxe6 {[%clk 0:00:02]}  fxe6 {[%clk 0:00:09]} 67. Rc4 {[%clk 0:00:03]}  Rg8 {[%clk 0:00:09]} 68. Rg4 {[%clk 0:00:02]}  Rc8 {[%clk 0:00:05]} 69. Ne4+ {[%clk 0:00:02]}  Kf5 {[%clk 0:00:05]} 70. Ng3+ {[%clk 0:00:03]}  Kf6 {[%clk 0:00:06]} 71. h4 {[%clk 0:00:02]}  Rc2 {[%clk 0:00:06]} 72. Ne4+ {[%clk 0:00:02]}  Kf5 {[%clk 0:00:06]} 73. Kf3 {[%clk 0:00:01]}  Bf6 {[%clk 0:00:03]} 74. Rf4+ {[%clk 0:00:01]}  Ke5 {[%clk 0:00:04]} 75. Nxf6 {[%clk 0:00:02]}  Rc3+ {[%clk 0:00:03]} 76. Kg4 {[%clk 0:00:02]}  Rc1 {[%clk 0:00:03]} 77. Ne4 {[%clk 0:00:02]}  Rg1+ {[%clk 0:00:03]} 78. Ng3 {[%clk 0:00:03]}  Rh1 {[%clk 0:00:04]} 79. h5 {[%clk 0:00:03]}  Rb1 {[%clk 0:00:04]} 80. Re4+ {[%clk 0:00:03]}  Kd5 {[%clk 0:00:04]} 81. f3 {[%clk 0:00:03]}  Rb8 {[%clk 0:00:05]} 82. h6 {[%clk 0:00:04]}  Rf8 {[%clk 0:00:05]} 83. Nh5 {[%clk 0:00:03]}  Rg8+ {[%clk 0:00:06]} 84. Kh4 {[%clk 0:00:04]}  Rh8 {[%clk 0:00:06]} 85. Kg5 {[%clk 0:00:04]}  Rg8+ {[%clk 0:00:06]} 86. Kf6 {[%clk 0:00:05]}  Rf8+ {[%clk 0:00:05]} 87. Kg7 {[%clk 0:00:05]}  Rxf3 {[%clk 0:00:05]} 88. Rg4 {[%clk 0:00:05]}  Rh3 {[%clk 0:00:05]} 89. Rg5+ {[%clk 0:00:05]}  Kd6 {[%clk 0:00:03]} 90. h7 {[%clk 0:00:06]}  e5 {[%clk 0:00:03]} 91. h8=Q {[%clk 0:00:06]}  e4 {[%clk 0:00:04]} 92. Qf8+ {[%clk 0:00:06]}  Kc6 {[%clk 0:00:04]} 93. Qf6+ {[%clk 0:00:06]}  Kb7 {[%clk 0:00:04]} 94. Qe7+ {[%clk 0:00:06]}  Ka8 {[%clk 0:00:04]} 95. Qd8+ {[%clk 0:00:06]}  Kb7 {[%clk 0:00:05]} 96. Rb5+ {[%clk 0:00:06]}  Kc6 {[%clk 0:00:05]} 97. Qd5+ {[%clk 0:00:07]}  Kc7 {[%clk 0:00:06]} 98. Rb7+ {[%clk 0:00:08]}  Kc8 {[%clk 0:00:06]} 99. Qd7# {[%clk 0:00:09]} 1-0


[Site "https://www.chess.com"]

[Event "Titled Tuesday Blitz June 13 Late 2023"]
[White "Mekhitarian, Krikor Sevag"]
[Black "Schnaider, Ilan"]
[WhiteFideId "2107660"]
[BlackFideId "169013"]
[WhiteElo "2604"]
[BlackElo "2224"]
[Result "1-0"]
[Round "7"]
[TimeControl "180+2"]
[Date "2023.06.13"]
[WhiteClock "0:00:10"]
[BlackClock "0:00:02"]
[Board "34"]

1. Nf3 {[%clk 0:03:00]}  Nf6 {[%clk 0:02:59]} 2. c4 {[%clk 0:02:59]}  g6 {[%clk 0:02:59]} 3. Nc3 {[%clk 0:02:58]}  Bg7 {[%clk 0:02:59]} 4. e4 {[%clk 0:02:58]}  e5 {[%clk 0:03:00]} 5. Nxe5 {[%clk 0:02:52]}  O-O {[%clk 0:03:00]} 6. Nf3 {[%clk 0:02:30]}  Re8 {[%clk 0:03:00]} 7. Bd3 {[%clk 0:02:19]}  c6 {[%clk 0:02:53]} 8. O-O {[%clk 0:02:18]}  d5 {[%clk 0:02:54]} 9. cxd5 {[%clk 0:01:51]}  cxd5 {[%clk 0:02:55]} 10. exd5 {[%clk 0:01:51]}  Nxd5 {[%clk 0:02:55]} 11. Bc4 {[%clk 0:01:49]}  Nb6 {[%clk 0:02:47]} 12. Bb3 {[%clk 0:01:46]}  Nc6 {[%clk 0:02:47]} 13. d4 {[%clk 0:01:37]}  Bg4 {[%clk 0:02:28]} 14. Be3 {[%clk 0:01:21]}  Rb8 {[%clk 0:02:01]} 15. h3 {[%clk 0:01:19]}  Bf5 {[%clk 0:01:43]} 16. a3 {[%clk 0:01:09]}  Na5 {[%clk 0:01:39]} 17. Ba2 {[%clk 0:01:09]}  Nac4 {[%clk 0:01:39]} 18. Bc1 {[%clk 0:01:08]}  Rc8 {[%clk 0:01:37]} 19. a4 {[%clk 0:01:05]}  Qd7 {[%clk 0:01:26]} 20. a5 {[%clk 0:01:04]}  Nxa5 {[%clk 0:01:16]} 21. Bxf7+ {[%clk 0:00:54]}  Qxf7 {[%clk 0:01:17]} 22. Rxa5 {[%clk 0:00:54]}  a6 {[%clk 0:01:07]} 23. Ne5 {[%clk 0:00:54]}  Bxe5 {[%clk 0:00:28]} 24. Rxe5 {[%clk 0:00:54]}  Nc4 {[%clk 0:00:25]} 25. Rxe8+ {[%clk 0:00:52]}  Rxe8 {[%clk 0:00:26]} 26. d5 {[%clk 0:00:51]}  Rd8 {[%clk 0:00:25]} 27. Qd4 {[%clk 0:00:49]}  b5 {[%clk 0:00:22]} 28. Bg5 {[%clk 0:00:45]}  Rd7 {[%clk 0:00:20]} 29. Re1 {[%clk 0:00:44]}  h5 {[%clk 0:00:17]} 30. b3 {[%clk 0:00:39]}  Nd6 {[%clk 0:00:15]} 31. Bf4 {[%clk 0:00:31]}  b4 {[%clk 0:00:13]} 32. Qxb4 {[%clk 0:00:30]}  Nb5 {[%clk 0:00:10]} 33. Nxb5 {[%clk 0:00:29]}  axb5 {[%clk 0:00:11]} 34. d6 {[%clk 0:00:28]}  Bc2 {[%clk 0:00:08]} 35. Be5 {[%clk 0:00:23]}  Bxb3 {[%clk 0:00:06]} 36. Qxb5 {[%clk 0:00:22]}  Bc4 {[%clk 0:00:06]} 37. Qb8+ {[%clk 0:00:22]}  Qf8 {[%clk 0:00:06]} 38. Qb2 {[%clk 0:00:19]}  Bd5 {[%clk 0:00:05]} 39. Qd4 {[%clk 0:00:18]}  Qf7 {[%clk 0:00:04]} 40. Qe3 {[%clk 0:00:15]}  Kh7 {[%clk 0:00:03]} 41. Qg5 {[%clk 0:00:12]}  Qe6 {[%clk 0:00:03]} 42. Re3 {[%clk 0:00:10]}  Rf7 {[%clk 0:00:01]} 43. Bf4 {[%clk 0:00:09]}  Qd7 {[%clk 0:00:01]} 44. Qh6+ {[%clk 0:00:09]}  Kg8 {[%clk 0:00:01]} 45. Qxg6+ {[%clk 0:00:10]}  Kf8 {[%clk 0:00:01]} 46. Bh6+ {[%clk 0:00:10]}  Rg7 {[%clk 0:00:02]} 47. Bxg7+ {[%clk 0:00:10]}  Qxg7 {[%clk 0:00:02]} 48. Re8# {[%clk 0:00:10]} 1-0


[Site "https://www.chess.com"]

[Event "Titled Tuesday Blitz June 13 Late 2023"]
[White "Koellner, Ruben Gideon"]
[Black "Gadimbayli, Abdulla"]
[WhiteFideId "12993093"]
[BlackFideId "13404938"]
[WhiteElo "2314"]
[BlackElo "2386"]
[Result "0-1"]
[Round "7"]
[TimeControl "180+2"]
[Date "2023.06.13"]
[WhiteClock "0:00:18"]
[BlackClock "0:00:23"]
[Board "36"]

1. d4 {[%clk 0:03:00]}  d5 {[%clk 0:03:00]} 2. Nf3 {[%clk 0:03:00]}  Nc6 {[%clk 0:03:00]} 3. e3 {[%clk 0:02:57]}  Bg4 {[%clk 0:02:54]} 4. Bb5 {[%clk 0:02:55]}  Qd6 {[%clk 0:02:54]} 5. c4 {[%clk 0:02:53]}  dxc4 {[%clk 0:02:52]} 6. Nc3 {[%clk 0:02:53]}  Nf6 {[%clk 0:02:49]} 7. h3 {[%clk 0:02:52]}  Bxf3 {[%clk 0:02:34]} 8. Qxf3 {[%clk 0:02:53]}  a6 {[%clk 0:02:34]} 9. Bxc4 {[%clk 0:02:51]}  e5 {[%clk 0:02:32]} 10. dxe5 {[%clk 0:02:39]}  Qxe5 {[%clk 0:02:33]} 11. O-O {[%clk 0:02:31]}  Bd6 {[%clk 0:02:33]} 12. Rd1 {[%clk 0:02:23]}  Qh2+ {[%clk 0:02:30]} 13. Kf1 {[%clk 0:02:23]}  O-O {[%clk 0:02:23]} 14. Nd5 {[%clk 0:02:14]}  Nd7 {[%clk 0:01:56]} 15. Bd2 {[%clk 0:02:11]}  Nde5 {[%clk 0:01:54]} 16. Qe4 {[%clk 0:02:04]}  Rae8 {[%clk 0:01:52]} 17. Bc3 {[%clk 0:01:53]}  Kh8 {[%clk 0:01:38]} 18. Bb3 {[%clk 0:01:22]}  f5 {[%clk 0:01:30]} 19. Qf4 {[%clk 0:01:10]}  Qh1+ {[%clk 0:01:18]} 20. Ke2 {[%clk 0:01:09]}  Qxg2 {[%clk 0:01:19]} 21. Rg1 {[%clk 0:00:40]}  Qxh3 {[%clk 0:01:17]} 22. Rh1 {[%clk 0:00:17]}  Qg4+ {[%clk 0:01:14]} 23. Qxg4 {[%clk 0:00:13]}  fxg4 {[%clk 0:01:12]} 24. Nf4 {[%clk 0:00:12]}  Rxf4 {[%clk 0:00:42]} 25. exf4 {[%clk 0:00:13]}  Ng6+ {[%clk 0:00:43]} 26. Kd2 {[%clk 0:00:12]}  Nxf4 {[%clk 0:00:36]} 27. Rae1 {[%clk 0:00:10]}  Rf8 {[%clk 0:00:36]} 28. Bc2 {[%clk 0:00:09]}  Nh3 {[%clk 0:00:33]} 29. Re2 {[%clk 0:00:08]}  h6 {[%clk 0:00:17]} 30. f3 {[%clk 0:00:06]}  Bf4+ {[%clk 0:00:16]} 31. Kd1 {[%clk 0:00:05]}  gxf3 {[%clk 0:00:14]} 32. Rxh3 {[%clk 0:00:03]}  fxe2+ {[%clk 0:00:14]} 33. Kxe2 {[%clk 0:00:04]}  Be5 {[%clk 0:00:15]} 34. Be4 {[%clk 0:00:03]}  Bxc3 {[%clk 0:00:15]} 35. Bxc6 {[%clk 0:00:04]}  bxc6 {[%clk 0:00:12]} 36. Rxc3 {[%clk 0:00:04]}  Rf6 {[%clk 0:00:12]} 37. Ra3 {[%clk 0:00:04]}  c5 {[%clk 0:00:12]} 38. Rc3 {[%clk 0:00:05]}  Rf5 {[%clk 0:00:10]} 39. Ra3 {[%clk 0:00:05]}  Rf6 {[%clk 0:00:10]} 40. Rc3 {[%clk 0:00:05]}  Rg6 {[%clk 0:00:10]} 41. Kf2 {[%clk 0:00:03]}  Rb6 {[%clk 0:00:10]} 42. b3 {[%clk 0:00:03]}  Rb5 {[%clk 0:00:11]} 43. Rd3 {[%clk 0:00:02]}  Kh7 {[%clk 0:00:10]} 44. Rd7 {[%clk 0:00:02]}  Ra5 {[%clk 0:00:09]} 45. Rd2 {[%clk 0:00:02]}  c4 {[%clk 0:00:08]} 46. bxc4 {[%clk 0:00:03]}  Rf5+ {[%clk 0:00:08]} 47. Ke3 {[%clk 0:00:03]}  h5 {[%clk 0:00:08]} 48. Rd7 {[%clk 0:00:03]}  c6 {[%clk 0:00:06]} 49. Rd6 {[%clk 0:00:02]}  Rf6 {[%clk 0:00:06]} 50. Rd8 {[%clk 0:00:02]}  h4 {[%clk 0:00:07]} 51. Rd4 {[%clk 0:00:02]}  h3 {[%clk 0:00:06]} 52. Rh4+ {[%clk 0:00:01]}  Rh6 {[%clk 0:00:07]} 53. Rxh6+ {[%clk 0:00:01]}  Kxh6 {[%clk 0:00:08]} 54. Kf3 {[%clk 0:00:02]}  g5 {[%clk 0:00:08]} 55. Kg3 {[%clk 0:00:03]}  g4 {[%clk 0:00:09]} 56. Kh2 {[%clk 0:00:03]}  Kg5 {[%clk 0:00:10]} 57. Kg3 {[%clk 0:00:04]}  Kf5 {[%clk 0:00:11]} 58. c5 {[%clk 0:00:05]}  Ke5 {[%clk 0:00:11]} 59. a4 {[%clk 0:00:05]}  Kd5 {[%clk 0:00:12]} 60. a5 {[%clk 0:00:06]}  Kxc5 {[%clk 0:00:12]} 61. Kh2 {[%clk 0:00:07]}  Kb5 {[%clk 0:00:13]} 62. Kg3 {[%clk 0:00:08]}  Kxa5 {[%clk 0:00:14]} 63. Kh2 {[%clk 0:00:09]}  Kb4 {[%clk 0:00:14]} 64. Kg3 {[%clk 0:00:10]}  a5 {[%clk 0:00:15]} 65. Kh2 {[%clk 0:00:11]}  a4 {[%clk 0:00:16]} 66. Kg3 {[%clk 0:00:12]}  a3 {[%clk 0:00:16]} 67. Kh2 {[%clk 0:00:13]}  a2 {[%clk 0:00:17]} 68. Kg3 {[%clk 0:00:13]}  c5 {[%clk 0:00:18]} 69. Kh2 {[%clk 0:00:14]}  c4 {[%clk 0:00:19]} 70. Kg3 {[%clk 0:00:15]}  a1=Q {[%clk 0:00:19]} 71. Kh2 {[%clk 0:00:16]}  Qc3 {[%clk 0:00:20]} 72. Kg1 {[%clk 0:00:16]}  Qd2 {[%clk 0:00:21]} 73. Kh1 {[%clk 0:00:16]}  c3 {[%clk 0:00:21]} 74. Kg1 {[%clk 0:00:17]}  c2 {[%clk 0:00:22]} 75. Kh1 {[%clk 0:00:18]}  c1=Q# {[%clk 0:00:23]} 0-1


[Site "https://www.chess.com"]

[Event "Titled Tuesday Blitz June 13 Late 2023"]
[White "Lashkin, Jegor"]
[Black "ATM622"]
[WhiteFideId "13907808"]
[WhiteElo "2368"]
[BlackElo "2608"]
[Result "1-0"]
[Round "7"]
[TimeControl "180+2"]
[Date "2023.06.13"]
[WhiteClock "0:01:58"]
[BlackClock "0:01:57"]
[Board "37"]

1. Nf3 {[%clk 0:03:00]}  d5 {[%clk 0:02:58]} 2. e3 {[%clk 0:02:57]}  Nf6 {[%clk 0:02:58]} 3. d4 {[%clk 0:02:56]}  e6 {[%clk 0:02:57]} 4. Bd3 {[%clk 0:02:55]}  c5 {[%clk 0:02:57]} 5. O-O {[%clk 0:02:55]}  Nc6 {[%clk 0:02:57]} 6. b3 {[%clk 0:02:53]}  Qc7 {[%clk 0:02:56]} 7. Bb2 {[%clk 0:02:52]}  cxd4 {[%clk 0:02:56]} 8. exd4 {[%clk 0:02:50]}  Be7 {[%clk 0:02:52]} 9. a3 {[%clk 0:02:48]}  O-O {[%clk 0:02:51]} 10. Nbd2 {[%clk 0:02:49]}  b6 {[%clk 0:02:50]} 11. Qe2 {[%clk 0:02:47]}  Bb7 {[%clk 0:02:50]} 12. Rfe1 {[%clk 0:02:37]}  Rac8 {[%clk 0:02:44]} 13. Rac1 {[%clk 0:02:33]}  a5 {[%clk 0:02:40]} 14. c4 {[%clk 0:02:27]}  Rfd8 {[%clk 0:02:30]} 15. cxd5 {[%clk 0:02:22]}  exd5 {[%clk 0:02:29]} 16. Bf5 {[%clk 0:02:20]}  Ra8 {[%clk 0:02:00]} 17. Ne5 {[%clk 0:02:08]}  Qd6 {[%clk 0:02:00]} 18. Nxc6 {[%clk 0:01:58]}  Bxc6 {[%clk 0:01:57]} 19. Qxe7 {[%clk 0:01:58]} 1-0


[Site "https://www.chess.com"]

[Event "Titled Tuesday Blitz June 13 Late 2023"]
[White "Korkmaz, Necmettin"]
[Black "Hambleton, Aman"]
[WhiteFideId "6303285"]
[BlackFideId "2606577"]
[WhiteElo "2097"]
[BlackElo "2511"]
[Result "0-1"]
[Round "7"]
[TimeControl "180+2"]
[Date "2023.06.13"]
[WhiteClock "0:00:34"]
[BlackClock "0:00:01"]
[Board "38"]

1. e4 {[%clk 0:02:54]}  b6 {[%clk 0:02:58]} 2. d4 {[%clk 0:02:53]}  Bb7 {[%clk 0:02:54]} 3. Bd3 {[%clk 0:02:51]}  e6 {[%clk 0:02:44]} 4. Ne2 {[%clk 0:02:49]}  d5 {[%clk 0:02:04]} 5. e5 {[%clk 0:02:49]}  Ne7 {[%clk 0:01:39]} 6. O-O {[%clk 0:02:47]}  Ba6 {[%clk 0:01:35]} 7. c3 {[%clk 0:02:38]}  Bxd3 {[%clk 0:01:34]} 8. Qxd3 {[%clk 0:02:38]}  c5 {[%clk 0:01:33]} 9. f4 {[%clk 0:02:36]}  Qd7 {[%clk 0:01:28]} 10. Be3 {[%clk 0:02:23]}  Nf5 {[%clk 0:01:28]} 11. Bf2 {[%clk 0:02:19]}  h5 {[%clk 0:01:28]} 12. Ng3 {[%clk 0:02:18]}  c4 {[%clk 0:01:18]} 13. Qc2 {[%clk 0:02:16]}  Nc6 {[%clk 0:01:16]} 14. Nxf5 {[%clk 0:02:16]}  exf5 {[%clk 0:01:17]} 15. Bh4 {[%clk 0:02:16]}  Be7 {[%clk 0:01:16]} 16. Bxe7 {[%clk 0:02:09]}  Kxe7 {[%clk 0:01:17]} 17. Nd2 {[%clk 0:02:06]}  Rhc8 {[%clk 0:01:10]} 18. Rae1 {[%clk 0:02:06]}  Nd8 {[%clk 0:01:10]} 19. e6 {[%clk 0:02:04]}  Nxe6 {[%clk 0:00:16]} 20. Qxf5 {[%clk 0:02:02]}  g6 {[%clk 0:00:16]} 21. Qe5 {[%clk 0:01:49]}  Qd6 {[%clk 0:00:14]} 22. f5 {[%clk 0:01:49]}  gxf5 {[%clk 0:00:15]} 23. Qxf5 {[%clk 0:01:47]}  Rf8 {[%clk 0:00:15]} 24. Nf3 {[%clk 0:01:46]}  Kd7 {[%clk 0:00:06]} 25. Re5 {[%clk 0:01:44]}  Kc6 {[%clk 0:00:05]} 26. b3 {[%clk 0:01:43]}  b5 {[%clk 0:00:05]} 27. a4 {[%clk 0:01:42]}  a6 {[%clk 0:00:04]} 28. Ra1 {[%clk 0:01:41]}  Nc7 {[%clk 0:00:04]} 29. bxc4 {[%clk 0:01:38]}  bxc4 {[%clk 0:00:04]} 30. Qxh5 {[%clk 0:01:31]}  f6 {[%clk 0:00:04]} 31. Ree1 {[%clk 0:01:27]}  Rab8 {[%clk 0:00:04]} 32. Rab1 {[%clk 0:01:21]}  Rb3 {[%clk 0:00:04]} 33. a5 {[%clk 0:01:17]}  Rfb8 {[%clk 0:00:03]} 34. Rbc1 {[%clk 0:01:17]}  Rb2 {[%clk 0:00:03]} 35. Qh4 {[%clk 0:01:11]}  R8b5 {[%clk 0:00:02]} 36. Rf1 {[%clk 0:00:57]}  Rxa5 {[%clk 0:00:02]} 37. Ne1 {[%clk 0:00:57]}  Ne8 {[%clk 0:00:01]} 38. Qh8 {[%clk 0:00:52]}  Qe7 {[%clk 0:00:01]} 39. Rc2 {[%clk 0:00:46]}  Raa2 {[%clk 0:00:01]} 40. Rxb2 {[%clk 0:00:45]}  Rxb2 {[%clk 0:00:02]} 41. Nf3 {[%clk 0:00:41]}  a5 {[%clk 0:00:02]} 42. Qh7 {[%clk 0:00:39]}  Qxh7 {[%clk 0:00:02]} 43. Ra1 {[%clk 0:00:34]}  Qc2 {[%clk 0:00:01]} 0-1


[Site "https://www.chess.com"]

[Event "Titled Tuesday Blitz June 13 Late 2023"]
[White "Siddharth, Jagadeesh"]
[Black "Feng, Eric"]
[WhiteFideId "5818320"]
[BlackFideId "30952590"]
[WhiteElo "2303"]
[BlackElo "1785"]
[Result "1-0"]
[Round "7"]
[TimeControl "180+2"]
[Date "2023.06.13"]
[WhiteClock "0:00:48"]
[BlackClock "0:00:32"]
[Board "39"]

1. e4 {[%clk 0:02:53]}  c6 {[%clk 0:02:58]} 2. d4 {[%clk 0:02:53]}  d5 {[%clk 0:02:56]} 3. e5 {[%clk 0:02:53]}  c5 {[%clk 0:02:56]} 4. Nf3 {[%clk 0:02:53]}  cxd4 {[%clk 0:02:56]} 5. Qxd4 {[%clk 0:02:53]}  Nc6 {[%clk 0:02:56]} 6. Qf4 {[%clk 0:02:53]}  e6 {[%clk 0:02:45]} 7. Bd3 {[%clk 0:02:53]}  g6 {[%clk 0:02:28]} 8. O-O {[%clk 0:02:50]}  Bg7 {[%clk 0:02:28]} 9. Re1 {[%clk 0:02:27]}  Nge7 {[%clk 0:02:28]} 10. Qh4 {[%clk 0:02:25]}  Nf5 {[%clk 0:02:26]} 11. Qxd8+ {[%clk 0:02:24]}  Nxd8 {[%clk 0:02:27]} 12. Nc3 {[%clk 0:02:22]}  Bd7 {[%clk 0:02:27]} 13. Nb5 {[%clk 0:02:18]}  Bxb5 {[%clk 0:02:21]} 14. Bxb5+ {[%clk 0:02:19]}  Nc6 {[%clk 0:02:22]} 15. g4 {[%clk 0:02:16]}  Ne7 {[%clk 0:02:21]} 16. c3 {[%clk 0:02:14]}  a6 {[%clk 0:02:19]} 17. Bd3 {[%clk 0:02:14]}  h5 {[%clk 0:02:16]} 18. h3 {[%clk 0:02:14]}  Kd7 {[%clk 0:02:15]} 19. Kg2 {[%clk 0:02:14]}  Rae8 {[%clk 0:02:13]} 20. Bf4 {[%clk 0:02:12]}  Rhf8 {[%clk 0:02:09]} 21. Ng5 {[%clk 0:02:05]}  hxg4 {[%clk 0:01:59]} 22. hxg4 {[%clk 0:02:06]}  f6 {[%clk 0:01:56]} 23. exf6 {[%clk 0:01:48]}  Rxf6 {[%clk 0:01:57]} 24. Bg3 {[%clk 0:01:49]}  Nc8 {[%clk 0:01:52]} 25. Rad1 {[%clk 0:01:46]}  e5 {[%clk 0:01:14]} 26. Bc4 {[%clk 0:01:27]}  d4 {[%clk 0:01:11]} 27. cxd4 {[%clk 0:01:26]}  exd4 {[%clk 0:01:11]} 28. Rxe8 {[%clk 0:01:26]}  Kxe8 {[%clk 0:01:12]} 29. Re1+ {[%clk 0:01:27]}  Kd7 {[%clk 0:01:03]} 30. Be6+ {[%clk 0:01:27]}  Kd8 {[%clk 0:00:58]} 31. Nf7+ {[%clk 0:01:02]}  Ke7 {[%clk 0:00:59]} 32. Bh4 {[%clk 0:01:03]}  Nb6 {[%clk 0:00:52]} 33. Bb3+ {[%clk 0:00:58]}  Kf8 {[%clk 0:00:51]} 34. Bxf6 {[%clk 0:00:53]}  Bxf6 {[%clk 0:00:51]} 35. Nd6 {[%clk 0:00:54]}  Na5 {[%clk 0:00:45]} 36. Re8+ {[%clk 0:00:53]}  Kg7 {[%clk 0:00:45]} 37. Rg8+ {[%clk 0:00:52]}  Kh7 {[%clk 0:00:46]} 38. Rf8 {[%clk 0:00:47]}  Bg7 {[%clk 0:00:40]} 39. Bg8+ {[%clk 0:00:47]}  Kh6 {[%clk 0:00:32]} 40. Nf7# {[%clk 0:00:48]} 1-0


[Site "https://www.chess.com"]

[Event "Titled Tuesday Blitz June 13 Late 2023"]
[White "Fernandez Guillen, Ernesto J."]
[Black "TimGrutter03"]
[WhiteFideId "3512428"]
[WhiteElo "2434"]
[BlackElo "2579"]
[Result "1-0"]
[Round "7"]
[TimeControl "180+2"]
[Date "2023.06.13"]
[WhiteClock "0:00:50"]
[BlackClock "0:00:11"]
[Board "40"]

1. e4 {[%clk 0:02:51]}  c6 {[%clk 0:02:58]} 2. d4 {[%clk 0:02:51]}  d5 {[%clk 0:02:58]} 3. e5 {[%clk 0:02:52]}  c5 {[%clk 0:02:58]} 4. dxc5 {[%clk 0:02:53]}  e6 {[%clk 0:02:58]} 5. a3 {[%clk 0:02:53]}  Nc6 {[%clk 0:02:57]} 6. Nf3 {[%clk 0:02:45]}  Bxc5 {[%clk 0:02:56]} 7. Bd3 {[%clk 0:02:45]}  Nge7 {[%clk 0:02:49]} 8. O-O {[%clk 0:02:44]}  Ng6 {[%clk 0:02:49]} 9. Re1 {[%clk 0:02:43]}  O-O {[%clk 0:02:46]} 10. Nc3 {[%clk 0:02:38]}  Qc7 {[%clk 0:02:42]} 11. b4 {[%clk 0:02:16]}  Be7 {[%clk 0:02:36]} 12. Nb5 {[%clk 0:02:11]}  Qd8 {[%clk 0:02:31]} 13. Nbd4 {[%clk 0:01:58]}  Bd7 {[%clk 0:02:30]} 14. Nxc6 {[%clk 0:01:54]}  bxc6 {[%clk 0:02:31]} 15. Be3 {[%clk 0:01:54]}  a5 {[%clk 0:02:18]} 16. Qd2 {[%clk 0:01:33]}  Qc7 {[%clk 0:02:08]} 17. Bg5 {[%clk 0:01:24]}  Bxg5 {[%clk 0:01:54]} 18. Qxg5 {[%clk 0:01:23]}  c5 {[%clk 0:01:48]} 19. bxc5 {[%clk 0:01:22]}  Qxc5 {[%clk 0:01:48]} 20. h4 {[%clk 0:01:21]}  Qe7 {[%clk 0:01:25]} 21. Qg3 {[%clk 0:01:18]}  Rfb8 {[%clk 0:00:49]} 22. h5 {[%clk 0:01:15]}  Nf8 {[%clk 0:00:49]} 23. h6 {[%clk 0:01:15]}  g6 {[%clk 0:00:50]} 24. Qf4 {[%clk 0:01:13]}  Bb5 {[%clk 0:00:43]} 25. Nd4 {[%clk 0:00:56]}  Bxd3 {[%clk 0:00:43]} 26. Nc6 {[%clk 0:00:52]}  Qc7 {[%clk 0:00:11]} 27. Qf6 {[%clk 0:00:50]} 1-0


[Site "https://www.chess.com"]